[Event "Titled Tuesday Blitz February 07 Late 2023"]
[White "Figorito, Nick"]
[Black "Yang, Qindong"]
[WhiteFideId "30923689"]
[BlackFideId "8603758"]
[WhiteElo "2036"]
[BlackElo "2127"]
[Result "0-1"]
[Round "08"]
[TimeControl "180+2"]
[Date "2023.02.07"]
[WhiteClock "0:00:01"]
[BlackClock "0:00:05"]

1. Nf3 {[%clk 0:03:00]}  Nf6 {[%clk 0:02:58]} 2. g3 {[%clk 0:03:01]}  g6 {[%clk 0:02:57]} 3. Bg2 {[%clk 0:03:01]}  Bg7 {[%clk 0:02:58]} 4. O-O {[%clk 0:03:02]}  O-O {[%clk 0:02:58]} 5. c4 {[%clk 0:03:03]}  d6 {[%clk 0:02:59]} 6. Nc3 {[%clk 0:03:03]}  e5 {[%clk 0:02:59]} 7. d3 {[%clk 0:03:04]}  Nc6 {[%clk 0:02:59]} 8. Rb1 {[%clk 0:03:04]}  a5 {[%clk 0:03:00]} 9. a3 {[%clk 0:03:04]}  h6 {[%clk 0:02:57]} 10. b4 {[%clk 0:03:04]}  axb4 {[%clk 0:02:56]} 11. axb4 {[%clk 0:03:05]}  Be6 {[%clk 0:02:55]} 12. b5 {[%clk 0:03:06]}  Ne7 {[%clk 0:02:55]} 13. Ne1 {[%clk 0:03:06]}  Qc8 {[%clk 0:02:49]} 14. Nc2 {[%clk 0:03:04]}  Bh3 {[%clk 0:02:49]} 15. Nb4 {[%clk 0:03:04]}  Bxg2 {[%clk 0:02:44]} 16. Kxg2 {[%clk 0:03:05]}  c5 {[%clk 0:02:40]} 17. bxc6 {[%clk 0:02:59]}  bxc6 {[%clk 0:02:41]} 18. Ne4 {[%clk 0:02:50]}  Nxe4 {[%clk 0:02:31]} 19. dxe4 {[%clk 0:02:51]}  Qe6 {[%clk 0:02:30]} 20. Qd3 {[%clk 0:02:46]}  f5 {[%clk 0:02:18]} 21. Rd1 {[%clk 0:02:41]}  Rad8 {[%clk 0:02:11]} 22. Ba3 {[%clk 0:02:36]}  Qf6 {[%clk 0:01:58]} 23. exf5 {[%clk 0:02:33]}  gxf5 {[%clk 0:01:53]} 24. Nc2 {[%clk 0:02:26]}  f4 {[%clk 0:01:42]} 25. f3 {[%clk 0:01:37]}  Nf5 {[%clk 0:01:32]} 26. g4 {[%clk 0:01:21]}  Nh4+ {[%clk 0:01:19]} 27. Kh1 {[%clk 0:01:20]}  h5 {[%clk 0:01:14]} 28. Rg1 {[%clk 0:01:08]}  Kh8 {[%clk 0:01:05]} 29. gxh5 {[%clk 0:01:04]}  Nf5 {[%clk 0:01:02]} 30. Rg4 {[%clk 0:00:53]}  Rf7 {[%clk 0:00:48]} 31. Rbg1 {[%clk 0:00:48]}  Qh6 {[%clk 0:00:41]} 32. Rg5 {[%clk 0:00:43]}  Ne7 {[%clk 0:00:38]} 33. c5 {[%clk 0:00:30]}  d5 {[%clk 0:00:35]} 34. Bb2 {[%clk 0:00:30]}  Qe6 {[%clk 0:00:21]} 35. Qb3 {[%clk 0:00:23]}  Bf6 {[%clk 0:00:19]} 36. Rg6 {[%clk 0:00:22]}  Nxg6 {[%clk 0:00:18]} 37. Rxg6 {[%clk 0:00:21]}  Rg8 {[%clk 0:00:11]} 38. Qd3 {[%clk 0:00:18]}  Rxg6 {[%clk 0:00:06]} 39. Qxg6 {[%clk 0:00:18]}  Rg7 {[%clk 0:00:06]} 40. Qh6+ {[%clk 0:00:18]}  Kg8 {[%clk 0:00:06]} 41. Ne1 {[%clk 0:00:07]}  Qh3 {[%clk 0:00:06]} 42. Qg6 {[%clk 0:00:01]}  Qf1+ {[%clk 0:00:05]} 0-1


[Site "https://www.chess.com"]

[Event "Titled Tuesday Blitz February 07 Late 2023"]
[White "Battlecruiser_Operational"]
[Black "ArchibaldCerveza29"]
[WhiteElo "2371"]
[BlackElo "2520"]
[Result "0-1"]
[Round "08"]
[TimeControl "180+2"]
[Date "2023.02.07"]
[WhiteClock "0:00:17"]
[BlackClock "0:01:25"]

1. e4 {[%clk 0:02:52]}  e5 {[%clk 0:03:00]} 2. Nf3 {[%clk 0:02:49]}  Nc6 {[%clk 0:03:01]} 3. Bb5 {[%clk 0:02:48]}  g6 {[%clk 0:03:00]} 4. O-O {[%clk 0:02:47]}  Bg7 {[%clk 0:03:00]} 5. c3 {[%clk 0:02:44]}  a6 {[%clk 0:03:01]} 6. Ba4 {[%clk 0:02:41]}  Nge7 {[%clk 0:03:01]} 7. d4 {[%clk 0:02:40]}  exd4 {[%clk 0:03:02]} 8. cxd4 {[%clk 0:02:40]}  b5 {[%clk 0:03:03]} 9. Bb3 {[%clk 0:02:31]}  d6 {[%clk 0:03:03]} 10. h3 {[%clk 0:02:25]}  O-O {[%clk 0:03:03]} 11. Nc3 {[%clk 0:02:24]}  Na5 {[%clk 0:03:03]} 12. Bc2 {[%clk 0:02:23]}  c5 {[%clk 0:03:04]} 13. Bg5 {[%clk 0:02:11]}  h6 {[%clk 0:02:58]} 14. Bh4 {[%clk 0:02:00]}  g5 {[%clk 0:02:57]} 15. Bg3 {[%clk 0:02:00]}  Nc4 {[%clk 0:02:57]} 16. Rb1 {[%clk 0:01:53]}  Nc6 {[%clk 0:02:47]} 17. Ne2 {[%clk 0:01:41]}  Qb6 {[%clk 0:02:36]} 18. b3 {[%clk 0:01:15]}  Na3 {[%clk 0:02:34]} 19. Bxd6 {[%clk 0:01:13]}  Nxd4 {[%clk 0:02:22]} 20. Bxf8 {[%clk 0:01:05]}  Nxf3+ {[%clk 0:02:17]} 21. gxf3 {[%clk 0:01:06]}  Kxf8 {[%clk 0:02:13]} 22. Kg2 {[%clk 0:00:53]}  Nxb1 {[%clk 0:02:09]} 23. Bxb1 {[%clk 0:00:54]}  Be6 {[%clk 0:02:08]} 24. Qc1 {[%clk 0:00:41]}  c4 {[%clk 0:02:03]} 25. h4 {[%clk 0:00:23]}  gxh4 {[%clk 0:01:55]} 26. Nf4 {[%clk 0:00:23]}  h3+ {[%clk 0:01:54]} 27. Nxh3 {[%clk 0:00:22]}  cxb3 {[%clk 0:01:50]} 28. axb3 {[%clk 0:00:22]}  Rc8 {[%clk 0:01:46]} 29. Qa3+ {[%clk 0:00:20]}  b4 {[%clk 0:01:45]} 30. Qa4 {[%clk 0:00:20]}  Bxh3+ {[%clk 0:01:28]} 31. Kxh3 {[%clk 0:00:20]}  Rc3 {[%clk 0:01:26]} 32. Kg2 {[%clk 0:00:19]}  Qg6+ {[%clk 0:01:24]} 33. Kh2 {[%clk 0:00:18]}  Be5+ {[%clk 0:01:23]} 34. Kh1 {[%clk 0:00:17]}  Qh5+ {[%clk 0:01:24]} 35. Kg2 {[%clk 0:00:17]}  Qh2# {[%clk 0:01:25]} 0-1


[Site "https://www.chess.com"]

[Event "Titled Tuesday Blitz February 07 Late 2023"]
[White "Reprintsev, Alexander"]
[Black "Gatterer, Florian"]
[WhiteFideId "14100541"]
[BlackFideId "811688"]
[WhiteElo "2253"]
[BlackElo "2170"]
[Result "1-0"]
[Round "08"]
[TimeControl "180+2"]
[Date "2023.02.07"]
[WhiteClock "0:00:39"]
[BlackClock "0:00:01"]

1. e4 {[%clk 0:03:00]}  d5 {[%clk 0:02:59]} 2. exd5 {[%clk 0:03:00]}  Qxd5 {[%clk 0:03:00]} 3. Nc3 {[%clk 0:02:59]}  Qd8 {[%clk 0:03:00]} 4. d4 {[%clk 0:02:51]}  Nf6 {[%clk 0:02:59]} 5. Bc4 {[%clk 0:02:45]}  Bf5 {[%clk 0:02:50]} 6. Nge2 {[%clk 0:02:43]}  e6 {[%clk 0:02:50]} 7. Ng3 {[%clk 0:02:27]}  Bg6 {[%clk 0:02:47]} 8. h4 {[%clk 0:02:27]}  h6 {[%clk 0:02:43]} 9. h5 {[%clk 0:02:27]}  Bh7 {[%clk 0:02:42]} 10. Be3 {[%clk 0:02:27]}  c6 {[%clk 0:02:39]} 11. Bd3 {[%clk 0:02:27]}  Bxd3 {[%clk 0:02:36]} 12. Qxd3 {[%clk 0:02:28]}  Nbd7 {[%clk 0:02:33]} 13. O-O-O {[%clk 0:02:28]}  Qa5 {[%clk 0:02:31]} 14. Kb1 {[%clk 0:02:27]}  Bb4 {[%clk 0:02:23]} 15. Bd2 {[%clk 0:02:26]}  Nd5 {[%clk 0:02:01]} 16. Nxd5 {[%clk 0:02:26]}  cxd5 {[%clk 0:02:00]} 17. c3 {[%clk 0:02:17]}  Be7 {[%clk 0:01:52]} 18. f4 {[%clk 0:02:18]}  f5 {[%clk 0:01:28]} 19. Rde1 {[%clk 0:02:15]}  Kf7 {[%clk 0:01:28]} 20. Nxf5 {[%clk 0:02:12]}  Nf6 {[%clk 0:01:06]} 21. Nxe7 {[%clk 0:02:10]}  Kxe7 {[%clk 0:01:06]} 22. Qg6 {[%clk 0:02:06]}  Rhf8 {[%clk 0:00:52]} 23. f5 {[%clk 0:02:06]}  Ne4 {[%clk 0:00:51]} 24. Qxe6+ {[%clk 0:02:05]}  Kd8 {[%clk 0:00:50]} 25. Bf4 {[%clk 0:01:42]}  Rf6 {[%clk 0:00:23]} 26. Qg8+ {[%clk 0:01:38]}  Kd7 {[%clk 0:00:20]} 27. Qxg7+ {[%clk 0:01:25]}  Kc6 {[%clk 0:00:21]} 28. Rxe4 {[%clk 0:01:25]}  Rxf5 {[%clk 0:00:20]} 29. Re6+ {[%clk 0:01:23]}  Kb5 {[%clk 0:00:20]} 30. Qxb7+ {[%clk 0:01:23]}  Kc4 {[%clk 0:00:20]} 31. b3+ {[%clk 0:01:22]}  Kxc3 {[%clk 0:00:20]} 32. Rc1+ {[%clk 0:01:19]}  Kd3 {[%clk 0:00:14]} 33. Re3+ {[%clk 0:01:16]}  Kxd4 {[%clk 0:00:15]} 34. Rd1+ {[%clk 0:01:10]}  Kc5 {[%clk 0:00:11]} 35. Qxa8 {[%clk 0:01:04]}  Qb4 {[%clk 0:00:06]} 36. Rxd5+ {[%clk 0:00:55]}  Rxd5 {[%clk 0:00:04]} 37. Qf8+ {[%clk 0:00:55]}  Kb5 {[%clk 0:00:03]} 38. Qxb4+ {[%clk 0:00:55]}  Kxb4 {[%clk 0:00:04]} 39. g4 {[%clk 0:00:46]}  Rd1+ {[%clk 0:00:03]} 40. Kc2 {[%clk 0:00:46]}  Rf1 {[%clk 0:00:04]} 41. Bxh6 {[%clk 0:00:45]}  Rf2+ {[%clk 0:00:03]} 42. Kd3 {[%clk 0:00:46]}  Rxa2 {[%clk 0:00:03]} 43. Ke4 {[%clk 0:00:46]}  Kb5 {[%clk 0:00:03]} 44. g5 {[%clk 0:00:45]}  Kc6 {[%clk 0:00:04]} 45. g6 {[%clk 0:00:45]}  Rg2 {[%clk 0:00:04]} 46. Ke5 {[%clk 0:00:42]}  a5 {[%clk 0:00:03]} 47. Kf6 {[%clk 0:00:41]}  Rf2+ {[%clk 0:00:02]} 48. Kg7 {[%clk 0:00:41]}  a4 {[%clk 0:00:01]} 49. bxa4 {[%clk 0:00:41]}  Rg2 {[%clk 0:00:02]} 50. Kh7 {[%clk 0:00:41]}  Kd5 {[%clk 0:00:02]} 51. g7 {[%clk 0:00:41]}  Kd4 {[%clk 0:00:03]} 52. g8=Q {[%clk 0:00:40]}  Rxg8 {[%clk 0:00:02]} 53. Kxg8 {[%clk 0:00:41]}  Kd5 {[%clk 0:00:01]} 54. Bf4 {[%clk 0:00:37]}  Kd4 {[%clk 0:00:01]} 55. h6 {[%clk 0:00:37]}  Kd5 {[%clk 0:00:01]} 56. h7 {[%clk 0:00:38]}  Kd4 {[%clk 0:00:02]} 57. h8=Q+ {[%clk 0:00:38]}  Kd5 {[%clk 0:00:03]} 58. Qe5+ {[%clk 0:00:38]}  Kc6 {[%clk 0:00:01]} 59. Rc3+ {[%clk 0:00:39]}  Kb7 {[%clk 0:00:01]} 60. Qc7+ {[%clk 0:00:39]} 1-0


[Site "https://www.chess.com"]

[Event "Titled Tuesday Blitz February 07 Late 2023"]
[White "Dragomirescu, Angela"]
[Black "Jorajuria Mendoza, Algol"]
[WhiteFideId "1209914"]
[BlackFideId "5128897"]
[WhiteElo "2130"]
[BlackElo "2069"]
[Result "1-0"]
[Round "08"]
[TimeControl "180+2"]
[Date "2023.02.07"]
[WhiteClock "0:01:35"]
[BlackClock "0:00:17"]

1. e4 {[%clk 0:03:00]}  c5 {[%clk 0:03:00]} 2. Nf3 {[%clk 0:03:00]}  e6 {[%clk 0:02:59]} 3. d4 {[%clk 0:03:00]}  cxd4 {[%clk 0:02:59]} 4. Nxd4 {[%clk 0:03:01]}  Nc6 {[%clk 0:02:59]} 5. Nc3 {[%clk 0:03:00]}  Nf6 {[%clk 0:02:57]} 6. Ndb5 {[%clk 0:02:59]}  d6 {[%clk 0:02:55]} 7. Bf4 {[%clk 0:02:59]}  e5 {[%clk 0:02:55]} 8. Bg5 {[%clk 0:03:00]}  a6 {[%clk 0:02:55]} 9. Na3 {[%clk 0:03:00]}  b5 {[%clk 0:02:55]} 10. Nd5 {[%clk 0:03:01]}  Be7 {[%clk 0:02:55]} 11. Bxf6 {[%clk 0:03:02]}  Bxf6 {[%clk 0:02:56]} 12. c4 {[%clk 0:03:02]}  b4 {[%clk 0:02:53]} 13. Nc2 {[%clk 0:03:03]}  O-O {[%clk 0:02:46]} 14. g3 {[%clk 0:03:03]}  a5 {[%clk 0:02:40]} 15. Bg2 {[%clk 0:03:03]}  Be6 {[%clk 0:02:30]} 16. O-O {[%clk 0:03:00]}  Bg5 {[%clk 0:02:29]} 17. h4 {[%clk 0:03:00]}  Bh6 {[%clk 0:02:27]} 18. Qd3 {[%clk 0:03:00]}  Rc8 {[%clk 0:02:13]} 19. Rad1 {[%clk 0:02:58]}  f5 {[%clk 0:01:34]} 20. exf5 {[%clk 0:02:58]}  Bxf5 {[%clk 0:01:33]} 21. Be4 {[%clk 0:02:58]}  Bg4 {[%clk 0:01:03]} 22. f3 {[%clk 0:02:43]}  Bh3 {[%clk 0:01:02]} 23. Bxh7+ {[%clk 0:02:38]}  Kh8 {[%clk 0:01:01]} 24. Rf2 {[%clk 0:02:26]}  Ne7 {[%clk 0:00:48]} 25. Nxe7 {[%clk 0:02:20]}  Qxe7 {[%clk 0:00:49]} 26. Be4 {[%clk 0:02:20]}  Rf6 {[%clk 0:00:42]} 27. Ne3 {[%clk 0:01:45]}  Qf8 {[%clk 0:00:26]} 28. b3 {[%clk 0:01:42]}  g5 {[%clk 0:00:20]} 29. hxg5 {[%clk 0:01:42]}  Bxg5 {[%clk 0:00:20]} 30. Rh2 {[%clk 0:01:38]}  Kg7 {[%clk 0:00:20]} 31. Rxh3 {[%clk 0:01:36]}  Rd8 {[%clk 0:00:17]} 32. Rh7+ {[%clk 0:01:34]}  Kg8 {[%clk 0:00:17]} 33. Bd5+ {[%clk 0:01:35]} 1-0


[Site "https://www.chess.com"]

[Event "Titled Tuesday Blitz February 07 Late 2023"]
[White "Nunez V, Gustavo Eduardo"]
[Black "Fiorito, Francisco"]
[WhiteFideId "4403690"]
[BlackFideId "180165"]
[WhiteElo "2212"]
[BlackElo "2305"]
[Result "0-1"]
[Round "08"]
[TimeControl "180+2"]
[Date "2023.02.07"]
[WhiteClock "0:00:03"]
[BlackClock "0:01:07"]

1. e4 {[%clk 0:02:56]}  c5 {[%clk 0:02:59]} 2. Nc3 {[%clk 0:02:54]}  Nc6 {[%clk 0:02:59]} 3. g3 {[%clk 0:02:54]}  g6 {[%clk 0:02:59]} 4. Bg2 {[%clk 0:02:54]}  Bg7 {[%clk 0:02:59]} 5. Nge2 {[%clk 0:02:53]}  d6 {[%clk 0:03:00]} 6. O-O {[%clk 0:02:51]}  e6 {[%clk 0:03:00]} 7. d3 {[%clk 0:02:50]}  Nge7 {[%clk 0:03:00]} 8. Be3 {[%clk 0:02:51]}  O-O {[%clk 0:03:00]} 9. Qd2 {[%clk 0:02:52]}  Nd4 {[%clk 0:02:58]} 10. f4 {[%clk 0:02:49]}  Nec6 {[%clk 0:02:58]} 11. Rf2 {[%clk 0:02:49]}  b5 {[%clk 0:02:23]} 12. Bxd4 {[%clk 0:02:35]}  Nxd4 {[%clk 0:02:22]} 13. e5 {[%clk 0:02:33]}  Rb8 {[%clk 0:02:22]} 14. exd6 {[%clk 0:02:27]}  Qxd6 {[%clk 0:02:19]} 15. Ne4 {[%clk 0:02:25]}  Qc7 {[%clk 0:02:17]} 16. c3 {[%clk 0:02:23]}  Nf5 {[%clk 0:02:12]} 17. g4 {[%clk 0:02:04]}  Ne7 {[%clk 0:02:11]} 18. Bh1 {[%clk 0:02:05]}  Bb7 {[%clk 0:02:11]} 19. N2g3 {[%clk 0:02:05]}  Rfd8 {[%clk 0:02:11]} 20. Raf1 {[%clk 0:02:03]}  f5 {[%clk 0:02:04]} 21. Ng5 {[%clk 0:02:01]}  Rd6 {[%clk 0:01:54]} 22. Bxb7 {[%clk 0:01:59]}  Rxb7 {[%clk 0:01:54]} 23. Re1 {[%clk 0:01:59]}  Rbb6 {[%clk 0:01:54]} 24. Rfe2 {[%clk 0:01:56]}  Qd7 {[%clk 0:01:49]} 25. Qe3 {[%clk 0:01:54]}  Nd5 {[%clk 0:01:39]} 26. Qf2 {[%clk 0:01:41]}  h6 {[%clk 0:01:37]} 27. Nf3 {[%clk 0:00:49]}  Nxf4 {[%clk 0:01:33]} 28. gxf5 {[%clk 0:00:42]}  Nh3+ {[%clk 0:01:32]} 29. Kg2 {[%clk 0:00:41]}  Nxf2 {[%clk 0:01:33]} 30. Rxf2 {[%clk 0:00:37]}  exf5 {[%clk 0:01:32]} 31. d4 {[%clk 0:00:30]}  cxd4 {[%clk 0:01:32]} 32. cxd4 {[%clk 0:00:31]}  Re6 {[%clk 0:01:32]} 33. Rfe2 {[%clk 0:00:32]}  Rxe2+ {[%clk 0:01:32]} 34. Rxe2 {[%clk 0:00:33]}  Re6 {[%clk 0:01:31]} 35. Rd2 {[%clk 0:00:32]}  f4 {[%clk 0:01:30]} 36. Ne2 {[%clk 0:00:29]}  g5 {[%clk 0:01:29]} 37. h3 {[%clk 0:00:28]}  Qd5 {[%clk 0:01:26]} 38. Nc3 {[%clk 0:00:28]}  Qb7 {[%clk 0:01:26]} 39. d5 {[%clk 0:00:27]}  Re3 {[%clk 0:01:25]} 40. Nd1 {[%clk 0:00:16]}  Re8 {[%clk 0:01:18]} 41. Nf2 {[%clk 0:00:13]}  Rd8 {[%clk 0:01:16]} 42. Ne4 {[%clk 0:00:07]}  Rxd5 {[%clk 0:01:15]} 43. Re2 {[%clk 0:00:04]}  Rd3 {[%clk 0:01:15]} 44. Kf2 {[%clk 0:00:03]}  Qd5 {[%clk 0:01:07]} 45. Nc3 {[%clk 0:00:02]}  Qxf3+ {[%clk 0:01:06]} 46. Ke1 {[%clk 0:00:02]}  Bxc3+ {[%clk 0:01:06]} 47. bxc3 {[%clk 0:00:03]}  Re3 {[%clk 0:01:07]} 48. Rxe3 {[%clk 0:00:03]}  fxe3 {[%clk 0:01:08]} 49. c4 {[%clk 0:00:03]}  Qf2+ {[%clk 0:01:07]} 50. Kd1 {[%clk 0:00:03]}  Qd2# {[%clk 0:01:07]} 0-1


[Site "https://www.chess.com"]

[Event "Titled Tuesday Blitz February 07 Late 2023"]
[White "Matko, Ognjen"]
[Black "Schuster, Karsten"]
[WhiteFideId "14509717"]
[BlackFideId "4611071"]
[WhiteElo "2295"]
[BlackElo "2309"]
[Result "0-1"]
[Round "08"]
[TimeControl "180+2"]
[Date "2023.02.07"]
[WhiteClock "0:00:14"]
[BlackClock "0:01:29"]

1. e4 {[%clk 0:03:00]}  c6 {[%clk 0:02:59]} 2. d4 {[%clk 0:03:00]}  d5 {[%clk 0:03:00]} 3. exd5 {[%clk 0:03:00]}  cxd5 {[%clk 0:03:00]} 4. Bd3 {[%clk 0:03:01]}  Nc6 {[%clk 0:02:59]} 5. c3 {[%clk 0:03:01]}  Nf6 {[%clk 0:03:00]} 6. h3 {[%clk 0:03:00]}  g6 {[%clk 0:02:58]} 7. Bf4 {[%clk 0:02:59]}  Bf5 {[%clk 0:02:58]} 8. Bxf5 {[%clk 0:02:56]}  gxf5 {[%clk 0:02:58]} 9. Qb3 {[%clk 0:02:57]}  Qc8 {[%clk 0:02:55]} 10. Nd2 {[%clk 0:02:52]}  Bg7 {[%clk 0:02:55]} 11. Ne2 {[%clk 0:02:46]}  O-O {[%clk 0:02:55]} 12. O-O {[%clk 0:02:46]}  e6 {[%clk 0:02:53]} 13. Rfe1 {[%clk 0:02:42]}  Ne4 {[%clk 0:02:53]} 14. Nf3 {[%clk 0:02:28]}  Ne7 {[%clk 0:02:45]} 15. Rac1 {[%clk 0:02:24]}  Ng6 {[%clk 0:02:45]} 16. Qd1 {[%clk 0:02:20]}  b5 {[%clk 0:02:43]} 17. Bh2 {[%clk 0:02:13]}  Bh6 {[%clk 0:02:39]} 18. Rc2 {[%clk 0:02:12]}  Qc4 {[%clk 0:02:38]} 19. b3 {[%clk 0:01:48]}  Qc6 {[%clk 0:02:35]} 20. Ne5 {[%clk 0:01:48]}  Nxe5 {[%clk 0:02:36]} 21. Bxe5 {[%clk 0:01:49]}  Rfc8 {[%clk 0:02:31]} 22. Qd3 {[%clk 0:01:47]}  Kf8 {[%clk 0:02:20]} 23. f3 {[%clk 0:01:45]}  Nd6 {[%clk 0:02:09]} 24. Nf4 {[%clk 0:01:41]}  Bxf4 {[%clk 0:02:01]} 25. Bxf4 {[%clk 0:01:42]}  Ne8 {[%clk 0:02:01]} 26. Bh6+ {[%clk 0:01:39]}  Kg8 {[%clk 0:01:48]} 27. Qd2 {[%clk 0:01:34]}  Qd6 {[%clk 0:01:43]} 28. Qg5+ {[%clk 0:01:28]}  Kh8 {[%clk 0:01:43]} 29. Rce2 {[%clk 0:01:12]}  Qd8 {[%clk 0:01:42]} 30. Qd2 {[%clk 0:00:58]}  Qf6 {[%clk 0:01:41]} 31. Bf4 {[%clk 0:00:54]}  Qg6 {[%clk 0:01:39]} 32. Be5+ {[%clk 0:00:53]}  Kg8 {[%clk 0:01:39]} 33. g4 {[%clk 0:00:48]}  fxg4 {[%clk 0:01:39]} 34. Rg2 {[%clk 0:00:46]}  h5 {[%clk 0:01:39]} 35. fxg4 {[%clk 0:00:44]}  h4 {[%clk 0:01:39]} 36. Rf2 {[%clk 0:00:43]}  f6 {[%clk 0:01:37]} 37. Bh2 {[%clk 0:00:31]}  Rc6 {[%clk 0:01:37]} 38. Ref1 {[%clk 0:00:31]}  Rac8 {[%clk 0:01:36]} 39. Be5 {[%clk 0:00:22]}  Rxc3 {[%clk 0:01:33]} 40. Bxf6 {[%clk 0:00:14]}  Rg3+ {[%clk 0:01:32]} 41. Kh2 {[%clk 0:00:14]}  Rcc3 {[%clk 0:01:30]} 42. Be5 {[%clk 0:00:14]}  Rxh3+ {[%clk 0:01:30]} 43. Kg2 {[%clk 0:00:14]}  Qxg4+ {[%clk 0:01:29]} 0-1


[Site "https://www.chess.com"]

[Event "Titled Tuesday Blitz February 07 Late 2023"]
[White "Rian, Kapriaga"]
[Black "Ramirez Allo, Eduardo"]
[WhiteFideId "7103263"]
[BlackFideId "2224178"]
[WhiteElo "2089"]
[BlackElo "2274"]
[Result "1-0"]
[Round "08"]
[TimeControl "180+2"]
[Date "2023.02.07"]
[WhiteClock "0:01:19"]
[BlackClock "0:01:12"]

1. d4 {[%clk 0:03:00]}  Nf6 {[%clk 0:02:59]} 2. Nf3 {[%clk 0:03:00]}  g6 {[%clk 0:02:59]} 3. Bg5 {[%clk 0:02:59]}  Bg7 {[%clk 0:02:59]} 4. Nbd2 {[%clk 0:02:57]}  O-O {[%clk 0:02:57]} 5. e4 {[%clk 0:02:57]}  d6 {[%clk 0:02:57]} 6. c3 {[%clk 0:02:57]}  c5 {[%clk 0:02:57]} 7. dxc5 {[%clk 0:02:57]}  dxc5 {[%clk 0:02:57]} 8. Be2 {[%clk 0:02:57]}  b6 {[%clk 0:02:56]} 9. O-O {[%clk 0:02:56]}  Bb7 {[%clk 0:02:56]} 10. Qc2 {[%clk 0:02:54]}  Nbd7 {[%clk 0:02:36]} 11. Rfe1 {[%clk 0:02:52]}  e6 {[%clk 0:02:30]} 12. e5 {[%clk 0:02:40]}  h6 {[%clk 0:02:25]} 13. exf6 {[%clk 0:02:38]}  Nxf6 {[%clk 0:02:26]} 14. Bh4 {[%clk 0:02:30]}  g5 {[%clk 0:02:26]} 15. Bg3 {[%clk 0:02:29]}  Nh5 {[%clk 0:02:24]} 16. Bf1 {[%clk 0:02:26]}  Nxg3 {[%clk 0:02:24]} 17. hxg3 {[%clk 0:02:26]}  Qc7 {[%clk 0:02:24]} 18. Rad1 {[%clk 0:02:21]}  g4 {[%clk 0:02:21]} 19. Nh4 {[%clk 0:02:14]}  h5 {[%clk 0:02:17]} 20. Bd3 {[%clk 0:02:04]}  Bf6 {[%clk 0:02:04]} 21. Be4 {[%clk 0:02:02]}  Rae8 {[%clk 0:01:56]} 22. Bxb7 {[%clk 0:02:00]}  Qxb7 {[%clk 0:01:57]} 23. Ne4 {[%clk 0:01:59]}  Bg7 {[%clk 0:01:57]} 24. Nd6 {[%clk 0:01:56]}  Qe7 {[%clk 0:01:49]} 25. Nxe8 {[%clk 0:01:55]}  Qxe8 {[%clk 0:01:49]} 26. Re2 {[%clk 0:01:50]}  f5 {[%clk 0:01:45]} 27. Qb3 {[%clk 0:01:46]}  Rf6 {[%clk 0:01:43]} 28. Rde1 {[%clk 0:01:45]}  Kf7 {[%clk 0:01:43]} 29. Nxf5 {[%clk 0:01:30]}  Rxf5 {[%clk 0:01:30]} 30. Rxe6 {[%clk 0:01:29]}  Qc8 {[%clk 0:01:18]} 31. Rc6+ {[%clk 0:01:21]}  c4 {[%clk 0:01:12]} 32. Qxc4+ {[%clk 0:01:19]} 1-0


[Site "https://www.chess.com"]

[Event "Titled Tuesday Blitz February 07 Late 2023"]
[White "Todev, Simeon"]
[Black "Rodriguez Fontecha, Marcos"]
[WhiteFideId "2925133"]
[BlackFideId "2256576"]
[WhiteElo "2033"]
[BlackElo "2309"]
[Result "1/2-1/2"]
[Round "08"]
[TimeControl "180+2"]
[Date "2023.02.07"]
[WhiteClock "0:00:03"]
[BlackClock "0:00:12"]

1. e4 {[%clk 0:03:00]}  d5 {[%clk 0:03:00]} 2. exd5 {[%clk 0:03:00]}  Qxd5 {[%clk 0:03:01]} 3. Nc3 {[%clk 0:03:00]}  Qd8 {[%clk 0:03:00]} 4. d4 {[%clk 0:03:01]}  Bf5 {[%clk 0:03:01]} 5. Nf3 {[%clk 0:03:02]}  e6 {[%clk 0:03:01]} 6. Bd3 {[%clk 0:03:02]}  Bxd3 {[%clk 0:03:01]} 7. Qxd3 {[%clk 0:03:03]}  c6 {[%clk 0:03:01]} 8. O-O {[%clk 0:03:04]}  Nf6 {[%clk 0:03:02]} 9. Bg5 {[%clk 0:03:04]}  Bd6 {[%clk 0:03:03]} 10. Ne4 {[%clk 0:03:03]}  Be7 {[%clk 0:03:03]} 11. Bxf6 {[%clk 0:03:00]}  Bxf6 {[%clk 0:03:04]} 12. c4 {[%clk 0:03:01]}  O-O {[%clk 0:03:03]} 13. Rad1 {[%clk 0:03:01]}  Be7 {[%clk 0:03:02]} 14. d5 {[%clk 0:03:01]}  cxd5 {[%clk 0:03:02]} 15. cxd5 {[%clk 0:03:02]}  exd5 {[%clk 0:03:01]} 16. Qxd5 {[%clk 0:03:03]}  Qxd5 {[%clk 0:03:01]} 17. Rxd5 {[%clk 0:03:04]}  Re8 {[%clk 0:02:54]} 18. Rfd1 {[%clk 0:03:01]}  Nc6 {[%clk 0:02:51]} 19. Rd7 {[%clk 0:02:58]}  Rad8 {[%clk 0:02:50]} 20. Rxd8 {[%clk 0:02:54]}  Rxd8 {[%clk 0:02:50]} 21. Rxd8+ {[%clk 0:02:53]}  Nxd8 {[%clk 0:02:50]} 22. Nc3 {[%clk 0:02:49]}  Bf6 {[%clk 0:02:47]} 23. Nb5 {[%clk 0:02:49]}  a6 {[%clk 0:02:44]} 24. Nbd4 {[%clk 0:02:49]}  g5 {[%clk 0:02:41]} 25. g4 {[%clk 0:02:43]}  Kf8 {[%clk 0:02:24]} 26. Kf1 {[%clk 0:02:39]}  Ke7 {[%clk 0:02:24]} 27. Ke2 {[%clk 0:02:21]}  Ne6 {[%clk 0:02:24]} 28. Nxe6 {[%clk 0:02:14]}  Kxe6 {[%clk 0:02:24]} 29. Kd3 {[%clk 0:02:11]}  h6 {[%clk 0:02:11]} 30. b3 {[%clk 0:02:10]}  Kd5 {[%clk 0:02:10]} 31. Nd2 {[%clk 0:02:11]}  Bd8 {[%clk 0:01:59]} 32. Nc4 {[%clk 0:02:00]}  b5 {[%clk 0:01:55]} 33. Ne3+ {[%clk 0:02:00]}  Ke5 {[%clk 0:01:54]} 34. Nf5 {[%clk 0:01:59]}  h5 {[%clk 0:01:53]} 35. Nh6 {[%clk 0:01:54]}  Kf6 {[%clk 0:01:17]} 36. gxh5 {[%clk 0:01:48]}  Bc7 {[%clk 0:01:17]} 37. Ke4 {[%clk 0:01:41]}  Ke6 {[%clk 0:01:11]} 38. h3 {[%clk 0:01:38]}  Bb6 {[%clk 0:01:08]} 39. f3 {[%clk 0:01:33]}  Ba5 {[%clk 0:01:07]} 40. Nf5 {[%clk 0:01:26]}  Bc3 {[%clk 0:01:07]} 41. h6 {[%clk 0:01:22]}  Bh8 {[%clk 0:01:07]} 42. a4 {[%clk 0:01:03]}  bxa4 {[%clk 0:01:04]} 43. bxa4 {[%clk 0:01:03]}  Kf6 {[%clk 0:00:59]} 44. Nd6 {[%clk 0:00:35]}  Kg6 {[%clk 0:00:55]} 45. h7 {[%clk 0:00:26]}  Ba1 {[%clk 0:00:42]} 46. Kd5 {[%clk 0:00:15]}  f5 {[%clk 0:00:34]} 47. Ke6 {[%clk 0:00:11]}  f4 {[%clk 0:00:31]} 48. Nf7 {[%clk 0:00:06]}  Kxh7 {[%clk 0:00:32]} 49. Nxg5+ {[%clk 0:00:06]}  Kg6 {[%clk 0:00:33]} 50. Ne4 {[%clk 0:00:02]}  Bd4 {[%clk 0:00:33]} 51. Kd5 {[%clk 0:00:02]}  Be3 {[%clk 0:00:32]} 52. Nd6 {[%clk 0:00:02]}  Kg5 {[%clk 0:00:26]} 53. Ke4 {[%clk 0:00:01]}  Bd2 {[%clk 0:00:21]} 54. Nf5 {[%clk 0:00:02]}  a5 {[%clk 0:00:20]} 55. h4+ {[%clk 0:00:03]}  Kh5 {[%clk 0:00:20]} 56. Kd5 {[%clk 0:00:02]}  Kg6 {[%clk 0:00:20]} 57. Ke6 {[%clk 0:00:03]}  Bc1 {[%clk 0:00:19]} 58. Ne7+ {[%clk 0:00:04]}  Kh5 {[%clk 0:00:19]} 59. Nf5 {[%clk 0:00:03]}  Kg6 {[%clk 0:00:19]} 60. Nd4 {[%clk 0:00:02]}  Kh5 {[%clk 0:00:17]} 61. Kf5 {[%clk 0:00:02]}  Kxh4 {[%clk 0:00:17]} 62. Ne2 {[%clk 0:00:02]}  Bd2 {[%clk 0:00:16]} 63. Nxf4 {[%clk 0:00:03]}  Kg3 {[%clk 0:00:16]} 64. Ne6 {[%clk 0:00:01]}  Kxf3 {[%clk 0:00:15]} 65. Nd4+ {[%clk 0:00:02]}  Ke3 {[%clk 0:00:15]} 66. Nc6 {[%clk 0:00:02]}  Kd3 {[%clk 0:00:13]} 67. Ke5 {[%clk 0:00:02]}  Kc4 {[%clk 0:00:13]} 68. Kd6 {[%clk 0:00:01]}  Kb3 {[%clk 0:00:12]} 69. Kc5 {[%clk 0:00:02]}  Kxa4 {[%clk 0:00:12]} 70. Nxa5 {[%clk 0:00:03]} 1/2-1/2


[Site "https://www.chess.com"]